fUST/lending_fUST_20241205
["ID","MTS","AMOUNT","RATE_DAILY","PERIOD"]
[344318539,1733341847901,-500.0,0.00024657,7]
[344318540,1733341847910,-500.0,0.00024657,7]
[344318541,1733341847920,-500.0,0.00024657,7]
[344318542,1733341847930,-500.0,0.00024657,7]
[344318543,1733341847939,-500.0,0.00024657,7]
[344318544,1733341847949,-500.0,0.00024657,7]
[344318545,1733341847959,-500.0,0.00024657,7]
[344318546,1733341847968,-6370.88,0.00024657,7]
[344318547,1733341847978,-500.0,0.00024657,7]
[344318548,1733341847987,-500.0,0.00024657,7]
[344318549,1733341847996,-2026.84,0.00024657,7]
[344318550,1733341848005,-506.44,0.00024657,7]
[344318551,1733341848015,-649.08,0.00024657,7]
[344318552,1733341848025,-500.0,0.00024657,7]
[344318553,1733341848035,-500.0,0.00024657,7]
[344318554,1733341848049,-428.548861,0.0002474,2]
[344318555,1733341848059,-666.0,0.00024831,2]
[344318556,1733341848070,-6666.0,0.00024831,2]
[344318557,1733341848080,-212.435489,0.00024931,7]
[344318558,1733341848090,-1169.27083333,0.00024931,7]
[344318559,1733341848100,-312.274661,0.00024931,7]
[344318560,1733341848110,-500.0,0.00024931,7]
[344318561,1733341848121,-500.0,0.00024931,7]
[344318562,1733341848131,-500.0,0.00024931,7]
[344318563,1733341848141,-580.04,0.00024931,7]
[344318564,1733341848152,-500.0,0.00024931,7]
[344318565,1733341848161,-500.0,0.00024931,7]
[344318566,1733341848171,-500.0,0.00024931,7]
[344318567,1733341848181,-500.0,0.00024931,7]
[344318568,1733341848191,-500.0,0.00024931,7]
[344318569,1733341848201,-500.0,0.00024931,7]
[344318570,1733341848212,-1063.46,0.00024931,7]
[344318571,1733341848222,-500.0,0.00024931,7]
[344318572,1733341848233,-515.62,0.00024931,7]
[344318573,1733341848243,-419.63569997,0.00024931,7]
[344318574,1733341848254,-500.0,0.00024931,7]
[344318575,1733341848263,-262.26676882,0.00024931,7]
[344318576,1733341848275,-500.0,0.00024931,7]
[344318577,1733341848285,-500.0,0.00024931,7]
[344318578,1733341848298,-500.0,0.00024931,7]
[344318579,1733341848310,-500.0,0.00024931,7]
[344318580,1733341848320,-500.0,0.00024931,7]
[344318581,1733341848330,-500.0,0.00024931,7]
[344318582,1733341848340,-500.0,0.00024931,7]
[344318583,1733341848350,-196.58888578,0.00024931,7]
[344318584,1733341848360,-836.24,0.00024931,7]
[344318585,1733341848370,-500.0,0.00024931,7]
[344318586,1733341848379,-500.0,0.00024931,7]
[344318587,1733341848389,-500.0,0.00024931,7]
[344318588,1733341848399,-500.0,0.00024931,7]
[344318589,1733341848410,-500.0,0.00024931,7]
[344318590,1733341848420,-500.0,0.00024931,7]
[344318591,1733341848430,-500.0,0.00024931,7]
[344318592,1733341848439,-664.4,0.00024931,7]
[344318593,1733341848449,-500.0,0.00024931,7]
[344318594,1733341848459,-3701.31,0.00024931,7]
[344318595,1733341848468,-1236.06,0.00024931,7]
[344318596,1733341848478,-500.0,0.00024931,7]
[344318597,1733341848487,-500.0,0.00024931,7]
[344318598,1733341848496,-500.0,0.00024931,7]
[344318599,1733341848506,-747.98,0.00024931,7]
[344318600,1733341848516,-500.0,0.00024931,7]
[344318601,1733341848647,-500.0,0.00024931,7]
[344318602,1733341848658,-500.0,0.00024931,7]
[344318603,1733341848668,-500.0,0.00024931,7]
[344318604,1733341848678,-500.0,0.00024931,7]
[344318605,1733341848688,-500.0,0.00024931,7]
[344318606,1733341848697,-500.0,0.00024931,7]
[344318607,1733341848707,-500.0,0.00024931,7]
[344318608,1733341848716,-500.0,0.00024931,7]
[344318609,1733341848726,-500.0,0.00024931,7]
[344318610,1733341848736,-925.25,0.00024931,7]
[344318611,1733341848746,-500.0,0.00024931,7]
[344318612,1733341848756,-500.0,0.00024931,7]
[344318613,1733341848765,-519.53,0.00024931,7]
[344318614,1733341848776,-500.0,0.00024931,7]
[344318615,1733341848785,-618.75,0.00024931,7]
[344318616,1733341848797,-666.33,0.00024931,7]
[344318617,1733341848807,-500.0,0.00024931,7]
[344318618,1733341848818,-500.0,0.00024931,7]
[344318619,1733341848828,-500.0,0.00024931,7]
[344318620,1733341848838,-500.0,0.00024931,7]
[344318621,1733341848847,-529.16,0.00024931,7]
[344318622,1733341848857,-541.65,0.00024931,7]
[344318623,1733341848867,-500.0,0.00024931,7]
[344318624,1733341848877,-575.26,0.00024931,7]
[344318625,1733341848887,-210.97379649,0.00024931,7]
[344318626,1733341848897,-500.0,0.00024931,7]
[344318627,1733341848907,-500.0,0.00024931,7]
[344318628,1733341848917,-1549.28,0.00024931,7]
[344318629,1733341848927,-500.0,0.00024931,7]
[344318630,1733341848937,-500.0,0.00024931,7]
[344318631,1733341848947,-500.0,0.00024931,7]
[344318632,1733341848967,-184.15,0.00024931,7]
[344318633,1733341848981,-506.66,0.00024931,7]
[344318634,1733341848993,-511.14,0.00024931,7]
[344318635,1733341849004,-500.0,0.00024931,7]
[344318636,1733341849015,-500.0,0.00024931,7]
[344318637,1733341849026,-500.0,0.00024931,7]
[344318638,1733341849037,-500.0,0.00024931,7]
[344318639,1733341849049,-1334.87,0.00024931,7]
[344318640,1733341849060,-500.0,0.00024931,7]
[344318641,1733341849071,-500.0,0.00024931,7]
[344318642,1733341849081,-500.0,0.00024931,7]
[344318643,1733341849092,-500.0,0.00024931,7]
[344318644,1733341849102,-500.0,0.00024931,7]
[344318645,1733341849112,-500.0,0.00024931,7]
[344318646,1733341849123,-522.47,0.00024931,7]
[344318647,1733341849134,-500.0,0.00024931,7]
[344318648,1733341849144,-500.0,0.00024931,7]
[344318649,1733341849154,-500.0,0.00024931,7]
[344318650,1733341849165,-500.0,0.00024931,7]
[344318651,1733341849175,-339.84937437,0.00024931,7]
[344318652,1733341849186,-6370.88,0.00024931,7]
[344318653,1733341849196,-500.0,0.00024931,7]
[344318654,1733341849206,-2026.84,0.00024931,7]
[344318655,1733341849217,-506.44,0.00024931,7]
[344318656,1733341849230,-649.08,0.00024931,7]
[344318657,1733341849241,-500.0,0.00024931,7]
[344318658,1733341849252,-500.0,0.00024931,7]
[344318659,1733341849262,-500.0,0.00024973,2]
[344318660,1733341849274,-312.274661,0.00025,7]
[344318661,1733341849285,-161.0,0.00025,2]
[344318662,1733341849298,-3841.0,0.00025,2]
[344318663,1733341849310,-182.342812,0.000251,2]
[344318664,1733341849321,-1169.27083333,0.00025205,7]
[344318665,1733341849332,-312.274661,0.00025205,7]
[344318666,1733341849343,-500.0,0.00025205,7]
[344318667,1733341849353,-250.51917854,0.00025205,7]
[344318668,1733341849364,-500.0,0.00025205,7]
[344318669,1733341849373,-343.59,0.00025205,7]
[344318670,1733341849384,-620.02,0.00025205,7]
[344318671,1733341849394,-500.0,0.00025205,7]
[344318672,1733341849404,-500.0,0.00025205,7]
[344318673,1733341849415,-500.0,0.00025205,7]
[344318674,1733341849426,-1063.46,0.00025205,7]
[344318675,1733341849436,-515.62,0.00025205,7]
[344318676,1733341849447,-384.0,0.00025205,7]
[344318677,1733341849457,-500.0,0.00025205,7]
[344318678,1733341849468,-500.0,0.00025205,7]
[344318679,1733341849479,-500.0,0.00025205,7]
[344318680,1733341849489,-500.0,0.00025205,7]
[344318681,1733341849500,-500.0,0.00025205,7]
[344318682,1733341849510,-500.0,0.00025205,7]
[344318683,1733341849520,-500.0,0.00025205,7]
[344318684,1733341849531,-836.24,0.00025205,7]
[344318685,1733341849544,-648.41,0.00025205,7]
[344318686,1733341849554,-163.83635489,0.00025205,7]
[344318687,1733341849565,-500.0,0.00025205,7]
[344318688,1733341849575,-500.0,0.00025205,7]
[344318689,1733341849585,-500.0,0.00025205,7]
[344318690,1733341849595,-664.4,0.00025205,7]
[344318691,1733341849606,-500.0,0.00025205,7]
[344318692,1733341849616,-3701.31,0.00025205,7]
[344318693,1733341849625,-1236.06,0.00025205,7]
[344318694,1733341849635,-500.0,0.00025205,7]
[344318695,1733341849645,-500.0,0.00025205,7]
[344318696,1733341849655,-500.0,0.00025205,7]
[344318697,1733341849664,-747.98,0.00025205,7]
[344318698,1733341849674,-500.0,0.00025205,7]
[344318699,1733341849684,-500.0,0.00025205,7]
[344318700,1733341849693,-500.0,0.00025205,7]
[344318701,1733341849703,-500.0,0.00025205,7]
[344318702,1733341849712,-500.0,0.00025205,7]
[344318703,1733341849722,-619.76,0.00025205,7]
[344318704,1733341849732,-500.0,0.00025205,7]
[344318705,1733341849742,-925.25,0.00025205,7]
[344318706,1733341849751,-500.0,0.00025205,7]
[344318707,1733341849762,-500.0,0.00025205,7]
[344318708,1733341849772,-519.53,0.00025205,7]
[344318709,1733341849782,-500.0,0.00025205,7]
[344318710,1733341849792,-666.33,0.00025205,7]
[344318711,1733341849806,-500.0,0.00025205,7]
[344318712,1733341849816,-500.0,0.00025205,7]
[344318713,1733341849826,-500.0,0.00025205,7]
[344318714,1733341849836,-523.19,0.00025205,7]
[344318715,1733341849846,-529.16,0.00025205,7]
[344318716,1733341849855,-541.65,0.00025205,7]
[344318717,1733341849866,-575.26,0.00025205,7]
[344318718,1733341849876,-373.83,0.00025205,7]
[344318719,1733341849885,-500.0,0.00025205,7]
[344318720,1733341849895,-1549.28,0.00025205,7]
[344318721,1733341849905,-500.0,0.00025205,7]
[344318722,1733341849915,-500.0,0.00025205,7]
[344318723,1733341849924,-506.66,0.00025205,7]
[344318724,1733341849935,-511.14,0.00025205,7]
[344318725,1733341849945,-500.0,0.00025205,7]
[344318726,1733341849955,-500.0,0.00025205,7]
[344318727,1733341849964,-500.0,0.00025205,7]
[344318728,1733341849974,-395.21629436,0.00025205,7]
[344318729,1733341849984,-500.0,0.00025205,7]
[344318730,1733341849994,-1334.87,0.00025205,7]
[344318731,1733341850004,-500.0,0.00025205,7]
[344318732,1733341850013,-500.0,0.00025205,7]
[344318733,1733341850024,-500.0,0.00025205,7]
[344318734,1733341850033,-500.0,0.00025205,7]
[344318735,1733341850043,-522.47,0.00025205,7]
[344318736,1733341850053,-539.30328749,0.00025205,7]
[344318737,1733341850063,-554.53593038,0.00025205,7]
[344318738,1733341850072,-500.0,0.00025205,7]
[344318739,1733341850081,-500.0,0.00025205,7]
[344318740,1733341850091,-6370.88,0.00025205,7]
[344318741,1733341850101,-2026.84,0.00025205,7]
[344318742,1733341850110,-506.44,0.00025205,7]
[344318743,1733341850120,-500.0,0.00025205,7]
[344318744,1733341850129,-649.08,0.00025205,7]
[344318745,1733341850139,-500.0,0.00025205,7]
[344318746,1733341850148,-153.0,0.00025288,2]
[344318747,1733341850159,-153.0,0.00025288,2]
[344318748,1733341850170,-153.0,0.00025288,2]
[344318749,1733341850180,-153.0,0.00025288,2]
[344318750,1733341850190,-587.0,0.00025347,2]
[344318751,1733341850200,-1115.73489371,0.00025429,2]
[344318752,1733341850209,-176.313,0.00025472,10]
[344318753,1733341850219,-312.274661,0.00025479,7]
[344318754,1733341850231,-231.67,0.00025479,7]
[344318755,1733341850243,-500.0,0.00025479,7]
[344318756,1733341850253,-500.0,0.00025479,7]
[344318757,1733341850263,-500.0,0.00025479,7]
[344318758,1733341850275,-500.0,0.00025479,7]
[344318759,1733341850284,-1063.46,0.00025479,7]
[344318760,1733341850297,-515.62,0.00025479,7]
[344318761,1733341850306,-500.0,0.00025479,7]
[344318762,1733341850316,-464.36,0.00025479,7]
[344318763,1733341850326,-500.0,0.00025479,7]
[344318764,1733341850336,-500.0,0.00025479,7]
[344318765,1733341850346,-500.0,0.00025479,7]
[344318766,1733341850356,-500.0,0.00025479,7]
[344318767,1733341850366,-500.0,0.00025479,7]
[344318768,1733341850376,-836.24,0.00025479,7]
[344318769,1733341850386,-500.0,0.00025479,7]
[344318770,1733341850396,-500.0,0.00025479,7]
[344318771,1733341850405,-500.0,0.00025479,7]
[344318772,1733341850416,-664.4,0.00025479,7]
[344318773,1733341850426,-500.0,0.00025479,7]
[344318774,1733341850436,-3701.31,0.00025479,7]
[344318775,1733341850447,-1236.06,0.00025479,7]
[344318776,1733341850457,-500.0,0.00025479,7]
[344318777,1733341850467,-500.0,0.00025479,7]
[344318778,1733341850478,-307.4,0.00025479,7]
[344318779,1733341850488,-747.98,0.00025479,7]
[344318780,1733341850498,-500.0,0.00025479,7]
[344318781,1733341850508,-500.0,0.00025479,7]
[344318782,1733341850518,-500.0,0.00025479,7]
[344318783,1733341850527,-564.37713547,0.00025479,7]
[344318784,1733341850537,-500.0,0.00025479,7]
[344318785,1733341850553,-925.25,0.00025479,7]
[344318786,1733341850564,-500.0,0.00025479,7]
[344318787,1733341850575,-500.0,0.00025479,7]
[344318788,1733341850586,-519.53,0.00025479,7]
[344318789,1733341850595,-278.53116769,0.00025479,7]
[344318790,1733341850605,-666.33,0.00025479,7]
[344318791,1733341850615,-500.0,0.00025479,7]
[344318792,1733341850626,-500.0,0.00025479,7]
[344318793,1733341850636,-500.0,0.00025479,7]
[344318794,1733341850646,-529.16,0.00025479,7]
[344318795,1733341850655,-541.65,0.00025479,7]
[344318796,1733341850664,-575.26,0.00025479,7]
[344318797,1733341850676,-500.0,0.00025479,7]
[344318798,1733341850685,-1549.28,0.00025479,7]
[344318799,1733341850695,-500.0,0.00025479,7]
[344318800,1733341850705,-500.0,0.00025479,7]
[344318801,1733341850715,-506.66,0.00025479,7]
[344318802,1733341850724,-511.14,0.00025479,7]
[344318803,1733341850734,-500.0,0.00025479,7]
[344318804,1733341850744,-550.14,0.00025479,7]
[344318805,1733341850754,-500.0,0.00025479,7]
[344318806,1733341850763,-1334.87,0.00025479,7]
[344318807,1733341850773,-500.0,0.00025479,7]
[344318808,1733341850782,-387.29950004,0.00025479,7]
[344318809,1733341850796,-500.0,0.00025479,7]
[344318810,1733341850806,-500.0,0.00025479,7]
[344318811,1733341850815,-522.47,0.00025479,7]
[344318812,1733341850825,-565.93822968,0.00025479,7]
[344318813,1733341850834,-6370.88,0.00025479,7]
[344318814,1733341850844,-2026.84,0.00025479,7]
[344318815,1733341850853,-506.44,0.00025479,7]
[344318816,1733341850869,-500.0,0.00025479,7]
[344318817,1733341850879,-649.08,0.00025479,7]
[344318818,1733341850889,-500.0,0.00025479,7]
[344318819,1733341850899,-1000.0,0.00025521,2]
[344318820,1733341850908,-312.274661,0.00025753,7]
[344318821,1733341850918,-500.0,0.00025753,7]
[344318822,1733341850927,-500.0,0.00025753,7]
[344318823,1733341850937,-500.0,0.00025753,7]
[344318824,1733341850946,-500.0,0.00025753,7]
[344318825,1733341850956,-1063.46,0.00025753,7]
[344318826,1733341850966,-515.62,0.00025753,7]
[344318827,1733341850975,-500.0,0.00025753,7]
[344318828,1733341850985,-500.0,0.00025753,7]
[344318829,1733341850996,-500.0,0.00025753,7]
[344318830,1733341851006,-500.0,0.00025753,7]
[344318831,1733341851015,-175.8,0.00025753,7]
[344318832,1733341851025,-226.25796203,0.00025753,7]
[344318833,1733341851036,-836.24,0.00025753,7]
[344318834,1733341851047,-500.0,0.00025753,7]
[344318835,1733341851057,-500.0,0.00025753,7]
[344318836,1733341851067,-500.0,0.00025753,7]
[344318837,1733341851076,-664.4,0.00025753,7]
[344318838,1733341851086,-500.0,0.00025753,7]
[344318839,1733341851096,-3701.31,0.00025753,7]
[344318840,1733341851105,-1236.06,0.00025753,7]
[344318841,1733341851115,-500.0,0.00025753,7]
[344318842,1733341851125,-151.0,0.00025753,7]
[344318843,1733341851134,-500.0,0.00025753,7]
[344318844,1733341851143,-151.0,0.00025753,7]
[344318845,1733341851153,-151.0,0.00025753,7]
[344318846,1733341851162,-747.98,0.00025753,7]
[344318847,1733341851172,-500.0,0.00025753,7]
[344318848,1733341851181,-500.0,0.00025753,7]
[344318849,1733341851244,-585.4,0.00025753,7]
[344318850,1733341851255,-500.0,0.00025753,7]
[344318851,1733341851265,-925.25,0.00025753,7]
[344318852,1733341851275,-914.310394,0.00025753,7]
[344318853,1733341851284,-914.310394,0.00025753,7]
[344318854,1733341851297,-343.160903,0.00025753,7]
[344318855,1733341851307,-343.160903,0.00025753,7]
[344318856,1733341851318,-500.0,0.00025753,7]
[344318857,1733341851328,-500.0,0.00025753,7]
[344318858,1733341851337,-519.53,0.00025753,7]
[344318859,1733341851347,-666.33,0.00025753,7]
[344318860,1733341851357,-151.0,0.00025753,7]
[344318861,1733341851366,-500.0,0.00025753,7]
[344318862,1733341851376,-500.0,0.00025753,7]
[344318863,1733341851386,-500.0,0.00025753,7]
[344318864,1733341851395,-529.16,0.00025753,7]
[344318865,1733341851405,-541.65,0.00025753,7]
[344318866,1733341851414,-575.26,0.00025753,7]
[344318867,1733341851424,-1441.686751,0.00025753,7]
[344318868,1733341851433,-500.0,0.00025753,7]
[344318869,1733341851443,-1549.28,0.00025753,7]
[344318870,1733341851454,-1441.686751,0.00025753,7]
[344318871,1733341851463,-500.0,0.00025753,7]
[344318872,1733341851473,-500.0,0.00025753,7]
[344318873,1733341851483,-506.66,0.00025753,7]
[344318874,1733341851492,-511.14,0.00025753,7]
[344318875,1733341851502,-500.0,0.00025753,7]
[344318876,1733341851511,-500.0,0.00025753,7]
[344318877,1733341851521,-1334.87,0.00025753,7]
[344318878,1733341851530,-500.0,0.00025753,7]
[344318879,1733341851540,-500.0,0.00025753,7]
[344318880,1733341851553,-500.0,0.00025753,7]
[344318881,1733341851562,-522.47,0.00025753,7]
[344318882,1733341851571,-289.236586,0.00025753,7]
[344318883,1733341851581,-6370.88,0.00025753,7]
[344318884,1733341851591,-2026.84,0.00025753,7]
[344318885,1733341851600,-506.44,0.00025753,7]
[344318886,1733341851609,-500.0,0.00025753,7]
[344318887,1733341851618,-649.08,0.00025753,7]
[344318888,1733341851627,-500.0,0.00025753,7]
[344318889,1733341851636,-155.66809272,0.0002579,2]
[344318890,1733341851645,-587.0,0.00025944,2]
[344318891,1733341851654,-155.11512456,0.00025969,2]
[344318892,1733341851663,-312.274661,0.00026027,7]
[344318893,1733341851672,-500.0,0.00026027,7]
[344318894,1733341851681,-151.0,0.00026027,7]
[344318895,1733341851690,-500.0,0.00026027,7]
[344318896,1733341851699,-500.0,0.00026027,7]
[344318897,1733341851709,-500.0,0.00026027,7]
[344318898,1733341851718,-1063.46,0.00026027,7]
[344318899,1733341851728,-515.62,0.00026027,7]
[344318900,1733341851737,-151.0,0.00026027,7]
[344318901,1733341851746,-500.0,0.00026027,7]
[344318902,1733341851756,-500.0,0.00026027,7]
[344318903,1733341851765,-151.0,0.00026027,7]
[344318904,1733341851774,-500.0,0.00026027,7]
[344318905,1733341851784,-151.0,0.00026027,7]
[344318906,1733341851796,-500.0,0.00026027,7]
[344318907,1733341851805,-836.24,0.00026027,7]
[344318908,1733341851815,-500.0,0.00026027,7]
[344318909,1733341851824,-153.89,0.00026027,7]
[344318910,1733341851833,-500.0,0.00026027,7]
[344318911,1733341851842,-664.4,0.00026027,7]
[344318912,1733341851852,-500.0,0.00026027,7]
[344318913,1733341851861,-3701.31,0.00026027,7]
[344318914,1733341851871,-1236.06,0.00026027,7]
[344318915,1733341851880,-500.0,0.00026027,7]
[344318916,1733341851890,-332.255729,0.00026027,7]
[344318917,1733341851899,-500.0,0.00026027,7]
[344318918,1733341851909,-332.255729,0.00026027,7]
[344318919,1733341851919,-747.98,0.00026027,7]
[344318920,1733341851928,-765.137913,0.00026027,7]
[344318921,1733341851937,-500.0,0.00026027,7]
[344318922,1733341851947,-765.137913,0.00026027,7]
[344318923,1733341851956,-500.0,0.00026027,7]
[344318924,1733341851965,-500.0,0.00026027,7]
[344318925,1733341851974,-925.25,0.00026027,7]
[344318926,1733341851983,-500.0,0.00026027,7]
[344318927,1733341851992,-500.0,0.00026027,7]
[344318928,1733341852002,-519.53,0.00026027,7]
[344318929,1733341852011,-666.33,0.00026027,7]
[344318930,1733341852021,-500.0,0.00026027,7]
[344318931,1733341852030,-500.0,0.00026027,7]
[344318932,1733341852039,-500.0,0.00026027,7]
[344318933,1733341852051,-529.16,0.00026027,7]
[344318934,1733341852060,-541.65,0.00026027,7]
[344318935,1733341852069,-575.26,0.00026027,7]
[344318936,1733341852080,-500.0,0.00026027,7]
[344318937,1733341852090,-1549.28,0.00026027,7]
[344318938,1733341852099,-151.0,0.00026027,7]
[344318939,1733341852109,-500.0,0.00026027,7]
[344318940,1733341852118,-324.46614986,0.00026027,7]
[344318941,1733341852166,-182.19385014,0.00026027,7]
[344318942,1733341852176,-511.14,0.00026027,7]
[344318943,1733341852186,-500.0,0.00026027,7]
[344318944,1733341852196,-297.96139312,0.00026027,7]
[344318945,1733341852209,-202.03860688,0.00026027,7]
[344318946,1733341852220,-1334.87,0.00026027,7]
[344318947,1733341852233,-500.0,0.00026027,7]
[344318948,1733341852243,-330.52639312,0.00026027,7]
[344318949,1733341852255,-169.47360688,0.00026027,7]
[344318950,1733341852266,-500.0,0.00026027,7]
[344318951,1733341852275,-522.47,0.00026027,7]
[344318952,1733341852286,-6370.88,0.00026027,7]
[344318953,1733341852298,-2022.17639313,0.00026027,7]
[344318954,1733341852317,-4.66360687,0.00026027,7]
[344318955,1733341852326,-506.44,0.00026027,7]
[344318956,1733341852336,-500.0,0.00026027,7]
[344318957,1733341852346,-649.08,0.00026027,7]
[344318958,1733341852355,-484.14,0.00026027,7]
[344318959,1733341852365,-160.0,0.00026211,3]
[344318960,1733341852375,-153.0,0.00026229,2]
[344318961,1733341852385,-153.0,0.00026247,2]
[344318962,1733341852394,-306.0,0.00026247,2]
[344318963,1733341852405,-157.691295,0.00026301,7]
[344318964,1733341852415,-157.691295,0.00026301,7]
[344318965,1733341852425,-151.0,0.00026301,7]
[344318966,1733341852435,-312.274661,0.00026301,7]
[344318967,1733341852445,-500.0,0.00026301,7]
[344318968,1733341852455,-151.0,0.00026301,7]
[344318969,1733341852464,-151.0,0.00026301,7]
[344318970,1733341852474,-500.0,0.00026301,7]
[344318971,1733341852484,-500.0,0.00026301,7]
[344318972,1733341852495,-500.0,0.00026301,7]
[344318973,1733341852505,-1063.46,0.00026301,7]
[344318974,1733341852515,-515.62,0.00026301,7]
[344318975,1733341852524,-643.030246,0.00026301,7]
[344318976,1733341852541,-643.030246,0.00026301,7]
[344318977,1733341852558,-500.0,0.00026301,7]
[344318978,1733341852568,-500.0,0.00026301,7]
[344318979,1733341852578,-500.0,0.00026301,7]
[344318980,1733341852590,-522.83890258,0.00026301,7]
[344318981,1733341852600,-836.24,0.00026301,7]
[344318982,1733341852610,-500.0,0.00026301,7]
[344318983,1733341852621,-500.0,0.00026301,7]
[344318984,1733341852632,-664.4,0.00026301,7]
[344318985,1733341852642,-500.0,0.00026301,7]
[344318986,1733341852653,-3701.31,0.00026301,7]
[344318987,1733341852663,-1236.06,0.00026301,7]
[344318988,1733341852673,-500.0,0.00026301,7]
[344318989,1733341852685,-151.0,0.00026301,7]
[344318990,1733341852694,-532.36,0.00026301,7]
[344318991,1733341852705,-151.0,0.00026301,7]
[344318992,1733341852715,-151.0,0.00026301,7]
[344318993,1733341852725,-747.98,0.00026301,7]
[344318994,1733341852735,-500.0,0.00026301,7]
[344318995,1733341852745,-500.0,0.00026301,7]
[344318996,1733341852756,-500.0,0.00026301,7]
[344318997,1733341852766,-925.25,0.00026301,7]
[344318998,1733341852776,-914.310394,0.00026301,7]
[344318999,1733341852787,-914.310394,0.00026301,7]
[344319000,1733341852798,-343.160903,0.00026301,7]
[344319001,1733341852809,-343.160903,0.00026301,7]
[344319002,1733341852819,-500.0,0.00026301,7]
[344319003,1733341852831,-500.0,0.00026301,7]
[344319004,1733341852840,-519.53,0.00026301,7]
[344319005,1733341852851,-666.33,0.00026301,7]
[344319006,1733341852861,-151.0,0.00026301,7]
[344319007,1733341852871,-500.0,0.00026301,7]
[344319008,1733341852882,-500.0,0.00026301,7]
[344319009,1733341852892,-500.0,0.00026301,7]
[344319010,1733341852902,-529.16,0.00026301,7]
[344319011,1733341852912,-541.65,0.00026301,7]
[344319012,1733341852922,-575.26,0.00026301,7]
[344319013,1733341852933,-1441.686751,0.00026301,7]
[344319014,1733341852944,-500.0,0.00026301,7]
[344319015,1733341852954,-1441.686751,0.00026301,7]
[344319016,1733341852964,-1549.28,0.00026301,7]
[344319017,1733341852975,-500.0,0.00026301,7]
[344319018,1733341852984,-506.66,0.00026301,7]
[344319019,1733341852995,-511.14,0.00026301,7]
[344319020,1733341853004,-500.0,0.00026301,7]
[344319021,1733341853014,-500.0,0.00026301,7]
[344319022,1733341853024,-1334.87,0.00026301,7]
[344319023,1733341853034,-637.73721883,0.00026301,7]
[344319024,1733341853047,-500.0,0.00026301,7]
[344319025,1733341853057,-500.0,0.00026301,7]
[344319026,1733341853067,-522.47,0.00026301,7]
[344319027,1733341853078,-6370.88,0.00026301,7]
[344319028,1733341853088,-2026.84,0.00026301,7]
[344319029,1733341853098,-506.44,0.00026301,7]
[344319030,1733341853108,-500.0,0.00026301,7]
[344319031,1733341853118,-649.08,0.00026301,7]
[344319032,1733341853128,-660.0,0.00026384,2]
[344319033,1733341853140,-337.96756919,0.00026522,2]
[344319034,1733341853151,-1115.73489371,0.00026538,2]
[344319035,1733341853161,-1072.538371,0.00026575,7]
[344319036,1733341853171,-151.0,0.00026575,7]
[344319037,1733341853182,-628.80816475,0.00026575,7]
[344319038,1733341853192,-151.0,0.00026575,7]